[Event "Chinese League Div-A Rapid 2022"]
[Site "Fuling,Chongqing"]
[Date "2022.09.08"]
[Round "3.23"]
[White "Zhou, Weiqi"]
[Black "Zeng, Chongsheng"]
[Result "1/2-1/2"]
[ECO "D38"]
[WhiteElo "2597"]
[BlackElo "2597"]
[Annotator "TA"]
[PlyCount "38"]
[EventDate "2022.09.07"]
[EventType "team-tourn"]
[EventCountry "CHN"]
[SourceTitle "playchess.com"]
[Source "ChessBase"]
[SourceQuality "1"]
[TimeControl "1500+10"]

{[%evp 16,38,18,16,18,11,18,15,20,12,27,30,25,13,29,16,37,0,8,0,0,0,0,0,0]} 1. d4 {[%emt 0:00:02]} Nf6 {[%emt 0:00:01]} 2. Nf3 {[%emt 0:00:02]} e6 {[%emt 0:00:06]} 3. c4 {[%emt 0:00:02]} d5 {[%emt 0:00:01]} 4. Nc3 {[%emt 0:00:05]} Bb4 {[%emt 0:00:02]} 5. Bg5 {[%emt 0:00:04]} h6 {[%emt 0:00:04]} 6. Bxf6 {[%emt 0:00:05]} Qxf6 {[%emt 0:00:02]} 7. e3 {[%emt 0:00:04]} O-O {[%emt 0:00:04]} 8. Rc1 {[%emt 0:00:04]} dxc4 {[%emt 0:00:26]} 9. Bxc4 {[%emt 0:00:03]} c5 {[%emt 0:00:04] D38: Queen's Gambit Declined: Ragozin Defence (4 Nf3 Bb4).} 10. Qb3 {[%emt 0:00:43]} Nc6 {[%emt 0:00:59] [#] Hoping for ...Na5.} 11. dxc5 $1 {[%emt 0:00:42]} Bxc5 {[%emt 0:01:38]} 12. Ne4 {[%emt 0:00:23][%csl LRc5,LRf6]} Qe7 {[%emt 0:03:12]} 13. Nxc5 {[%emt 0:00:16]} Qxc5 {[%emt 0:00:01]} 14. O-O {[%emt 0:00:56][%cal Bh1f1,Bf1d1,Bd1d4][%mdl 32]} Qe7 {[%emt 0:00:30] [#]} 15. Rfd1 $146 {[%emt 0:02:37]} ({Predecessor:} 15. Bd3 Qb4 16. Qxb4 Nxb4 17. Bc4 Bd7 18. Ne5 Rfd8 19. Nxd7 Rxd7 20. a3 Nc6 21. Bb5 Rd2 22. Bxc6 {½-½ (22) Giri,A (2776)-Anand,V (2757) Bucharest 2019}) 15... Rb8 {[%emt 0:00:29]} 16. Nd4 {[%emt 0:08:23]} Bd7 {[%emt 0:00:18] The position is equal.} 17. Bb5 {[%emt 0:00:58]} Nxd4 {[%emt 0:01:13]} 18. Rxd4 {[%emt 0:00:03]} Bxb5 {[%emt 0:00:03]} 19. Qxb5 {[%emt 0:00:02]} Rfd8 {[%emt 0:00:29] Prevents Rd7. An uneventful encounter.  Weighted Error Value: White=0.05 (flawless) /Black=0.04 (flawless)} 1/2-1/2

[Event "Chinese League Div-A Rapid 2022"]
[Site "Fuling,Chongqing"]
[Date "2022.09.08"]
[Round "3.24"]
[White "Huang, Qian"]
[Black "Zhou, Guijue"]
[Result "1-0"]
[ECO "A08"]
[WhiteElo "2433"]
[BlackElo "2225"]
[Annotator "TA"]
[PlyCount "157"]
[EventDate "2022.09.07"]
[EventType "team-tourn"]
[EventCountry "CHN"]
[SourceTitle "playchess.com"]
[Source "ChessBase"]
[SourceQuality "1"]
[TimeControl "1500+10"]

{[%evp 9,157,-4,0,0,0,0,0,0,45,41,76,59,79,44,81,78,79,80,76,72,79,66,73,63,89,71,79,79,73,68,88,84,106,95,97,95,118,118,120,111,111,111,111,111,113,113,111,113,113,106,113,0,113,96,113,101,106,0,106,106,108,78,97,74,194,190,183,185,192,184,233,233,233,226,190,111,177,55,63,52,95,26,37,8,46,64,75,19,145,142,140,147,147,147,147,147,209,209,181,28,28,28,368,368,368,368,364,364,363,356,339,338,459,450,474,474,474,459,459,459,474,474,474,458,455,451,29966,29967,29966,29963,29969,29970,29978,29971,29976,29973,29970,29968,29967,29965,29966,529,29982,29974,29982,29983,29997,29998,29998,29999]} 1. Nf3 {[%emt 0:00:03]} Nf6 {[%emt 0:00:09]} 2. g3 {[%emt 0:00:20]} e6 {[%emt 0:00:02]} 3. Bg2 {[%emt 0:00:05]} d5 {[%emt 0:00:02]} 4. O-O {[%emt 0:00:10]} c5 {[%emt 0:00:00]} 5. d3 {[%emt 0:00:06]} Nc6 {[%emt 0:00:09]} 6. e4 {[%emt 0:00:46] A08: King's Indian Attack.} dxe4 {[%emt 0:03:31]} 7. dxe4 {[%emt 0:00:02]} Qxd1 {[%emt 0:00:02]} 8. Rxd1 {[%emt 0:00:01] [#] The position is equal.} e5 $146 {[%emt 0:00:01]} ({Predecessor:} 8... Nxe4 9. Na3 Be7 10. Bf4 f5 11. Ne5 Nxe5 12. Bxe5 Bf6 13. Nc4 Bxe5 14. Nxe5 Ke7 15. Bxe4 fxe4 {1-0 (56) Grischuk,A (2777)-Fridman,D (2616) Moscow 2019}) 9. Na3 {[%emt 0:01:45] Strongly threatening Nb5.} Bg4 {[%emt 0:01:37]} 10. c3 {[%emt 0:00:21]} Be7 {[%emt 0:00:40]} 11. h3 {[%emt 0:00:57]} Bxf3 {[%emt 0:00:02]} 12. Bxf3 {[%emt 0:00:01]} O-O {[%emt 0:00:07]} 13. Nc4 {[%emt 0:01:39]} Rfd8 {[%emt 0:00:12]} 14. Rxd8+ {[%emt 0:01:20]} Rxd8 {[%emt 0:00:04]} 15. a4 {[%emt 0:00:27]} b6 {[%emt 0:00:38]} 16. Be3 {[%emt 0:01:52]} h6 {[%emt 0:01:10]} 17. Bg2 {[%emt 0:02:03]} Ne8 {[%emt 0:00:40]} 18. Bf1 {[%emt 0:00:26]} Nd6 {[%emt 0:01:34]} 19. Nxd6 {[%emt 0:00:45]} Bxd6 {[%emt 0:00:54]} 20. Bc4 {[%emt 0:00:07]} Bc7 {[%emt 0:00:13]} 21. Kf1 {[%emt 0:01:11]} Kf8 {[%emt 0:00:03]} 22. Ke2 {[%emt 0:00:05]} Ke7 {[%emt 0:00:02]} 23. Bd5 {[%emt 0:00:09]} Nb8 {[%emt 0:00:59]} 24. a5 {[%emt 0:00:57]} Nd7 {[%emt 0:01:05]} 25. axb6 {[%emt 0:00:06]} Bxb6 {[%emt 0:00:05]} 26. Bc4 {[%emt 0:01:44]} Nf6 {[%emt 0:00:57]} 27. f3 {[%emt 0:01:09]} Rd7 {[%emt 0:00:11]} 28. b3 {[%emt 0:01:55]} Nh5 {[%emt 0:00:28]} 29. Kf2 {[%emt 0:00:17]} Nf6 {[%emt 0:00:03]} 30. Ke2 {[%emt 0:00:54]} Nh5 $1 {[%emt 0:00:02]} 31. Bf2 {[%emt 0:00:20]} Nf6 {[%emt 0:00:11]} 32. Ke3 {[%emt 0:00:12]} Ne8 {[%emt 0:02:03]} 33. Ke2 {[%emt 0:02:11]} Nf6 $1 {[%emt 0:00:14]} 34. Bb5 {[%emt 0:00:22]} Rd8 {[%emt 0:01:32]} 35. c4 {[%emt 0:01:27][%cal Ob3b4,Bc3c4,Bc4c5][%mdl 32]} a5 {[%emt 0:04:20]} 36. Be1 {[%emt 0:00:48]} Ra8 {[%emt 0:01:05]} (36... Nh5 $16) 37. b4 $1 $18 {[%emt 0:00:44]} cxb4 {[%emt 0:01:11]} 38. Bxb4+ {[%emt 0:00:02][%mdl 64] Pin} Ke6 {[%emt 0:00:02]} 39. c5 {[%emt 0:00:17]} Bc7 {[%emt 0:00:04]} (39... Rb8 $142) 40. Bc4+ $1 {[%emt 0:00:37]} Ke7 {[%emt 0:00:07]} 41. c6+ {[%emt 0:00:15]} Ke8 {[%emt 0:00:46]} 42. Bc3 {[%emt 0:01:01]} (42. Ba3 $18) 42... Ng8 {[%emt 0:01:02]} (42... Ke7 $16 {was worth a try.} 43. Bb4+ Ke8) 43. Bd5 {[%emt 0:01:03]} (43. Rd1 $18 {aiming for Rd7.} Nf6 44. Ra1) 43... Ne7 $14 {[%emt 0:00:06]} 44. Kd3 {[%emt 0:00:01]} f6 {[%emt 0:00:14]} 45. Kc4 {[%emt 0:00:08]} ({White should try} 45. Rb1 $16) 45... Nc8 $11 {[%emt 0:00:01]} 46. Bd2 {[%emt 0:01:12]} Nd6+ {[%emt 0:00:19]} 47. Kd3 {[%emt 0:00:07]} Nc8 {[%emt 0:00:04]} 48. f4 {[%emt 0:00:10] White is much more active. The black rooks are badly placed.} (48. Bb4 $16) 48... Ne7 {[%emt 0:00:31]} (48... a4 $1 $11) 49. fxe5 $1 $16 {[%emt 0:00:15]} Bxe5 {[%emt 0:00:02]} 50. Rxa5 {[%emt 0:00:01]} Rxa5 {[%emt 0:00:07]} 51. Bxa5 {[%emt 0:00:02] And now g4 would win.} Bxg3 {[%emt 0:00:11][%mdl 4096] Endgame [#] KBB-KBN} 52. Kc4 $1 {[%emt 0:00:04]} Bd6 {[%emt 0:00:28]} (52... Nc8 $16 53. Kc5 Nd6) 53. Kb5 $18 {[%emt 0:00:08]} f5 {[%emt 0:00:52] [#]} 54. Be6 $2 {[%emt 0:00:08] This bishop pair is nice.} (54. Kc4 $1 $18) 54... fxe4 $11 {[%emt 0:00:31]} 55. c7 {[%emt 0:00:02] Hoping for Kc4.} Bxc7 $2 {[%emt 0:00:01][%mdl 8192] This costs Black the game.} 56. Bxc7 $18 {[%emt 0:00:01]} e3 {[%emt 0:00:01]} 57. Kc4 {[%emt 0:00:17]} e2 {[%emt 0:00:02]} 58. Bg3 {[%emt 0:00:27]} Ng6 {[%emt 0:00:03][%cal Og6e5]} 59. Kc3 {[%emt 0:00:31]} Nf4 {[%emt 0:00:22]} 60. Bg4 {[%emt 0:00:08]} h5 {[%emt 0:00:26]} 61. Bf3 {[%emt 0:00:02] Prevents Nd5+.} Nxh3 {[%emt 0:00:04][%cal Oh3f4]} 62. Bxh5+ {[%emt 0:00:11]} Kf8 {[%emt 0:00:32]} 63. Bxe2 {[%emt 0:00:01]} Ng5 {[%emt 0:00:00]} 64. Kd4 {[%emt 0:00:03] Prevents Ne4.} Kf7 {[%emt 0:00:20]} 65. Ke5 {[%emt 0:00:03]} Nh7 {[%emt 0:00:19]} 66. Bc4+ {[%emt 0:00:27]} Kg6 {[%emt 0:00:02]} 67. Bd3+ {[%emt 0:00:02]} Kh6 {[%emt 0:00:01]} (67... Kf7 $18 68. Kf5 (68. Bxh7 g6 $11) 68... g6+ 69. Ke5 Nf6) 68. Bf4+ {[%emt 0:00:13]} g5 {[%emt 0:00:18]} 69. Bd2 {[%emt 0:00:01]} Kg7 {[%emt 0:00:42]} 70. Kf5 {[%emt 0:00:07]} Kh6 {[%emt 0:00:08]} 71. Bc4 {[%emt 0:00:16]} Kh5 {[%emt 0:00:13]} 72. Bf7+ {[%emt 0:00:10]} Kh6 {[%emt 0:00:01]} 73. Bc3 {[%emt 0:00:18]} Nf8 {[%emt 0:00:07]} 74. Bc4 {[%emt 0:00:30]} Nh7 {[%emt 0:00:05]} 75. Be2 {[%emt 0:00:15]} (75. Bb5 $142 Nf8 76. Be8 g4 77. Kxg4 Nh7 78. Kf5 Nf8 79. Bb2 Nh7 80. Bc3) 75... Nf8 {[%emt 0:00:05]} 76. Kf6 {[%emt 0:00:08] White mates.} Nd7+ {[%emt 0:00:36]} 77. Kf7 {[%emt 0:00:07]} Nc5 {[%emt 0:00:11]} 78. Bg7+ {[%emt 0:00:10]} Kh7 {[%emt 0:00:03]} 79. Bg4 {[%emt 0:00:10] Weighted Error Value: White=0.20 (precise) /Black=0.30} 1-0

[Event "Chinese League Div-A Rapid 2022"]
[Site "Fuling,Chongqing"]
[Date "2022.09.08"]
[Round "3.25"]
[White "Yeoh, Li Tian"]
[Black "Zhao, Shengxin"]
[Result "0-1"]
[ECO "B23"]
[WhiteElo "2530"]
[BlackElo "2112"]
[Annotator "TA"]
[PlyCount "142"]
[EventDate "2022.09.07"]
[EventType "team-tourn"]
[EventCountry "CHN"]
[SourceTitle "playchess.com"]
[Source "ChessBase"]
[SourceQuality "1"]
[TimeControl "1500+10"]

{[%evp 17,142,-20,35,27,40,44,78,46,44,43,50,36,38,18,26,10,0,0,9,0,0,0,0,0,0,-115,-106,-121,-109,-127,-40,-44,-10,-40,0,0,0,-86,-87,-87,-70,-89,-85,-87,-88,-88,-86,-94,-95,-115,-115,-115,-121,-123,-102,-110,-108,-333,-333,-333,-333,-290,-86,-86,-86,-274,-274,-274,-274,-274,-261,-164,-88,-1010,-906,-829,-716,-869,-777,-545,-655,-768,-714,-672,-585,-425,-367,-29969,-29971,-29965,-12204,-29975,-29976,-29976,-29977,-29977,-29978,-29978,-29968,-29978,-29979,-29982,-29983,-29983,-29982,-29981,-29981,-29981,-29982,-29981,-29982,-29989,-29985,-29987,-29988,-29988,-29985,-29985,-29986,-29986,-29987,-29987,-29988,-29988,-29989,-29989,-29990]} 1. e4 {[%emt 0:00:01]} c5 {[%emt 0:00:05]} 2. Nc3 {[%emt 0:00:04]} a6 {[%emt 0:00:30]} 3. a4 {[%emt 0:00:35]} Nc6 {[%emt 0:00:35]} 4. f4 {[%emt 0:00:57]} d6 {[%emt 0:00:36]} 5. Nf3 {[%emt 0:00:27]} g6 {[%emt 0:00:38]} 6. Bc4 {[%emt 0:00:19]} Bg7 {[%emt 0:00:14]} 7. d3 {[%emt 0:01:11]} e6 {[%emt 0:00:10]} 8. O-O {[%emt 0:01:13]} Nge7 {[%emt 0:00:10]} 9. Qe1 {[%emt 0:00:22]} Nd4 {[%emt 0:00:45]} ({Better is} 9... O-O $11) 10. Nxd4 $14 {[%emt 0:01:14] B23: Closed Sicilian: Lines without g3.} cxd4 {[%emt 0:00:13]} 11. Ne2 {[%emt 0:00:10]} Bd7 {[%emt 0:01:37]} 12. Bb3 {[%emt 0:01:17] White is better.} O-O {[%emt 0:01:57]} 13. Bd2 {[%emt 0:02:32]} Nc6 {[%emt 0:00:35]} 14. a5 {[%emt 0:01:10]} Kh8 {[%emt 0:00:26]} 15. Ng3 {[%emt 0:02:01]} f5 {[%emt 0:01:11] [#]} 16. exf5 $146 {[%emt 0:01:40]} ({Predecessor:} 16. Qf2 Qf6 17. Rfe1 Rae8 18. exf5 exf5 19. Qf3 Be6 20. Bd5 Bd7 21. Rxe8 Rxe8 22. Re1 {0-1 (77) Loeffler,C (2168)-Scheffknecht,P (2094) Austria 2013}) 16... exf5 {[%emt 0:00:06]} 17. Qf2 {[%emt 0:00:57]} Re8 {[%emt 0:00:39]} 18. Qf3 {[%emt 0:01:57]} Qc7 {[%emt 0:01:37]} 19. Rfe1 {[%emt 0:02:46]} Rxe1+ {[%emt 0:01:22]} 20. Rxe1 {[%emt 0:00:33]} Nxa5 {[%emt 0:05:14]} 21. Bxa5 {[%emt 0:01:02]} (21. Ba2 $1 $11) 21... Qxa5 $17 {[%emt 0:00:14]} 22. Re7 {[%emt 0:00:12]} Bc6 {[%emt 0:00:38]} 23. Qe2 {[%emt 0:00:06][%cal Oe7g7]} Qd8 {[%emt 0:04:06]} (23... Bf6 $1 $17 {[%cal Rf6e7]} 24. Re6 Qd8) 24. Qe6 $15 {[%emt 0:01:32]} Qf8 {[%emt 0:02:43][%cal Od6d5]} 25. Qxd6 {[%emt 0:00:47]} (25. Rf7 $5 {[%cal Rf7f8]} Qd8 26. Re7 $11) 25... Re8 {[%emt 0:00:28]} 26. Rxe8 {[%emt 0:00:07]} Qxe8 {[%emt 0:00:04]} 27. Qe6 {[%emt 0:00:11]} (27. Kf1 $11 {remains equal.}) 27... Qxe6 $17 {[%emt 0:00:41]} 28. Bxe6 {[%emt 0:00:02][%mdl 4096] Endgame KBB-KBN} Bf6 {[%emt 0:00:31]} 29. Ne2 {[%emt 0:00:18]} Kg7 {[%emt 0:01:10]} 30. Kf2 {[%emt 0:00:23]} Kf8 {[%emt 0:00:26]} 31. g3 {[%emt 0:00:44]} Ke7 {[%emt 0:00:02]} 32. Bb3 {[%emt 0:00:16]} h6 {[%emt 0:00:05]} 33. h4 {[%emt 0:00:48]} a5 {[%emt 0:00:17][%cal Ba6a5,Ba5a4][%mdl 32]} 34. Ng1 {[%emt 0:01:13]} a4 {[%emt 0:00:21]} 35. Bg8 {[%emt 0:00:09]} Be8 {[%emt 0:00:06]} 36. Nf3 {[%emt 0:01:18]} b5 {[%emt 0:00:07]} 37. Nd2 $2 {[%emt 0:00:05]} (37. Ke2 $17 {was called for.}) 37... Bf7 $19 {[%emt 0:00:13]} 38. Bxf7 {[%emt 0:00:01]} Kxf7 {[%emt 0:00:01] KB-KN} 39. Ke2 {[%emt 0:00:02]} b4 $2 {[%emt 0:00:21]} (39... g5 $1 $19 {[%cal Rg5h4] has better winning chances.} 40. h5 gxf4 41. gxf4 b4) 40. Nc4 $17 {[%emt 0:00:03]} Be7 {[%emt 0:00:04] Threatens to win with ...a3.} 41. Kd2 $2 {[%emt 0:00:13] [#]} (41. Kd1 $17) 41... g5 $1 $19 {[%emt 0:00:17]} 42. hxg5 {[%emt 0:00:02]} hxg5 {[%emt 0:00:02]} 43. Kc1 {[%emt 0:00:36]} gxf4 {[%emt 0:00:09]} 44. gxf4 {[%emt 0:00:00] [#]} Ke6 {[%emt 0:00:04]} (44... Bc5 $1 $19 {Strongly threatening ...Ke6.} 45. Ne5+ Kg7) 45. Kb1 $2 {[%emt 0:00:09][%mdl 8192]} (45. Nb6 $17) 45... Bd8 {[%emt 0:00:25]} 46. Ne5 {[%emt 0:00:43]} Kd5 {[%emt 0:00:05] ...Bc7 is the strong threat.} 47. Ng6 {[%emt 0:00:11]} Bc7 {[%emt 0:00:23] aiming for ...Ke6.} 48. Nh4 {[%emt 0:00:12]} Ke6 {[%emt 0:00:10]} 49. Nf3 {[%emt 0:00:05]} Bxf4 {[%emt 0:00:07] And now ...Be3 would win.} 50. Nxd4+ {[%emt 0:00:01]} Kf6 {[%emt 0:00:02]} 51. Nc6 {[%emt 0:00:18]} Bd6 {[%emt 0:00:08] Hoping for ...f4.} 52. c4 $2 {[%emt 0:00:21]} (52. Na5 $19 f4 53. Nc4) 52... bxc3 {[%emt 0:00:13]} 53. bxc3 {[%emt 0:00:01]} f4 {[%emt 0:00:01] ( -> ...f3)} 54. Nd4 {[%emt 0:00:02]} Be5 {[%emt 0:00:03] Black mates.} 55. Nf3 {[%emt 0:00:05]} Bxc3 {[%emt 0:00:02]} 56. Ka2 {[%emt 0:00:06]} Bb4 {[%emt 0:00:03]} 57. Kb2 {[%emt 0:00:21]} Ke6 {[%emt 0:00:10]} 58. Kc2 {[%emt 0:00:16]} Kf5 {[%emt 0:00:09]} 59. Nd4+ {[%emt 0:00:18]} Kg4 {[%emt 0:00:03]} 60. Kd1 {[%emt 0:00:10]} f3 {[%emt 0:00:25]} 61. Nc2 {[%emt 0:00:06]} Bc3 {[%emt 0:00:44]} 62. d4 {[%emt 0:00:14]} Kf4 {[%emt 0:00:05]} 63. d5 {[%emt 0:00:07]} Ke5 {[%emt 0:00:10]} 64. Ne3 {[%emt 0:00:03]} Bd4 {[%emt 0:00:06]} 65. Nc4+ {[%emt 0:00:20]} Kxd5 {[%emt 0:00:02]} 66. Na3 {[%emt 0:00:11]} Kc5 {[%emt 0:00:14]} 67. Kd2 {[%emt 0:00:08]} Kb4 {[%emt 0:00:07]} 68. Nc2+ {[%emt 0:00:01]} Kc4 {[%emt 0:00:03]} 69. Na3+ {[%emt 0:00:01]} Kb3 {[%emt 0:00:06]} 70. Nb5 {[%emt 0:00:01]} Bc5 {[%emt 0:00:04]} 71. Kd3 {[%emt 0:00:18]} a3 {[%emt 0:00:05] Weighted Error Value: White=0.52/Black=0.23 (precise)} 0-1

[Event "Chinese League Div-A Rapid 2022"]
[Site "Fuling,Chongqing"]
[Date "2022.09.08"]
[Round "3.26"]
[White "Peng, Xiongjian"]
[Black "Bai, Jinshi"]
[Result "1/2-1/2"]
[ECO "C42"]
[WhiteElo "2454"]
[BlackElo "2586"]
[Annotator "TA"]
[PlyCount "106"]
[EventDate "2022.09.07"]
[EventType "team-tourn"]
[EventCountry "CHN"]
[SourceTitle "playchess.com"]
[Source "ChessBase"]
[SourceQuality "1"]
[TimeControl "1500+10"]

{[%evp 17,106,27,27,5,16,10,11,10,31,29,53,56,56,65,60,62,165,150,141,133,119,130,132,102,143,131,145,147,173,162,194,152,175,175,175,166,174,184,171,147,143,104,93,107,114,114,118,81,95,86,84,94,95,96,92,94,135,16,16,14,15,19,19,0,0,0,8,0,0,0,0,0,1,8,8,8,8,8,8,8,8,8,8,8,8,8,8,8,8,8,8]} 1. e4 {[%emt 0:00:02]} e5 {[%emt 0:00:02]} 2. Nf3 {[%emt 0:00:01]} Nf6 {[%emt 0:00:02]} 3. Nxe5 {[%emt 0:00:02]} d6 {[%emt 0:00:02]} 4. Nf3 {[%emt 0:00:01]} Nxe4 {[%emt 0:00:02]} 5. d4 {[%emt 0:00:02]} d5 {[%emt 0:00:03]} 6. Bd3 {[%emt 0:00:01]} Bd6 {[%emt 0:00:02]} 7. O-O {[%emt 0:00:07]} O-O {[%emt 0:00:03]} 8. Re1 {[%emt 0:00:04]} Bf5 {[%emt 0:00:21]} 9. c4 {[%emt 0:00:08]} c6 {[%emt 0:00:27]} 10. Ng5 {[%emt 0:00:08][%cal Rd3e4] C42: Petroff Defence: 3 Nxe5 and unusual White 3rd moves.} Re8 {[%emt 0:02:55]} ({Much less strong is} 10... Nxg5 11. Bxf5 h6 12. Qb3 $14) 11. Bxe4 {[%emt 0:00:04]} dxe4 {[%emt 0:00:01]} 12. Nc3 {[%emt 0:00:01][%cal Bb1c3,Bc3e4,Be4c5,Bc5b7][%mdl 32]} ({Reject} 12. Qh5 Bg6 13. Qe2 h6 $17) 12... h6 {[%emt 0:00:59]} (12... Nd7 $5 {[%cal Rd7f6]}) 13. Ngxe4 {[%emt 0:00:04]} Bxe4 {[%emt 0:00:14]} 14. Nxe4 {[%emt 0:00:02][%cal Oc1h6]} Bxh2+ $1 {[%emt 0:00:02]} 15. Kf1 {[%emt 0:00:01][%cal Oc1h6]} f5 $1 {[%emt 0:08:37]} 16. Nc5 {[%emt 0:00:02] [#] And now g3 would win.} Bc7 $146 {[%emt 0:02:01]} ({Black should try} 16... b6 $1 $14) ({Predecessor:} 16... b6 17. Nd3 Bc7 18. Bf4 Bxf4 19. Nxf4 Na6 20. Rxe8+ Qxe8 21. Qd3 Qf7 22. Re1 g5 {½-½ (45) Yu,Y (2753)-Duda,J (2748) Hamburg 2019}) 17. Nxb7 $18 {[%emt 0:02:37]} Qc8 {[%emt 0:00:08]} 18. Nc5 {[%emt 0:01:20][%cal Oc1h6]} Nd7 {[%emt 0:00:05]} 19. Rxe8+ {[%emt 0:03:32]} Qxe8 {[%emt 0:00:02]} 20. Na6 {[%emt 0:00:04]} Bd8 {[%emt 0:01:15][%cal Bc7d8,Bd8f6,Bf6d4][%mdl 32]} 21. Bf4 {[%emt 0:00:59]} Qf7 {[%emt 0:02:40]} 22. Qd3 {[%emt 0:02:16] White is more active.} Bf6 {[%emt 0:00:03]} 23. Re1 {[%emt 0:01:23]} Nf8 {[%emt 0:00:53]} 24. b3 {[%emt 0:00:45]} Rd8 {[%emt 0:00:43]} 25. Qxf5 {[%emt 0:00:30]} Bxd4 {[%emt 0:00:40]} 26. Qxf7+ {[%emt 0:00:30]} Kxf7 {[%emt 0:00:01]} 27. Nb4 {[%emt 0:00:45]} Rc8 {[%emt 0:00:02]} 28. Rd1 {[%emt 0:00:43]} Ne6 {[%emt 0:00:07]} 29. Be3 {[%emt 0:00:27]} Bxe3 {[%emt 0:00:16]} 30. fxe3 $16 {[%emt 0:00:01][%mdl 4096] Endgame KRN-KRN} Ke7 {[%emt 0:00:02] Prevents Rd7+.} 31. Ke2 {[%emt 0:00:15]} Nc5 {[%emt 0:00:33]} 32. Rf1 {[%emt 0:01:14]} g6 {[%emt 0:01:40] Prevents Rf5.} 33. Rf4 {[%emt 0:01:37]} a5 {[%emt 0:00:04]} 34. Nc2 {[%emt 0:00:45]} Ne6 {[%emt 0:00:02]} 35. Rh4 {[%emt 0:00:08]} h5 {[%emt 0:00:09]} 36. Nd4 {[%emt 0:00:08] Black must now prevent Re4.} c5 {[%emt 0:00:11] [#]} 37. Nxe6 {[%emt 0:01:55]} (37. Nb5 $1 $16) 37... Kxe6 {[%emt 0:00:01] KR-KR. The position is equal.} 38. Re4+ {[%emt 0:00:01]} Kf6 {[%emt 0:00:11]} 39. Rf4+ {[%emt 0:00:00]} Ke6 {[%emt 0:00:02]} 40. Rf1 {[%emt 0:00:31]} Rd8 {[%emt 0:00:15]} 41. Rh1 {[%emt 0:01:06]} Ke5 {[%emt 0:00:23]} 42. Rf1 {[%emt 0:00:11] Rf7 is the strong threat.} Ke6 {[%emt 0:00:01] Prevents Rf7.} 43. Rf2 {[%emt 0:00:20]} h4 {[%emt 0:00:30]} 44. Rf1 {[%emt 0:00:40]} a4 {[%emt 0:01:44]} 45. Rb1 {[%emt 0:00:06]} axb3 {[%emt 0:00:29]} 46. Rxb3 {[%emt 0:00:28]} Ra8 {[%emt 0:00:04]} 47. Rb5 {[%emt 0:01:00]} Rxa2+ {[%emt 0:01:18]} 48. Kf3 {[%emt 0:00:01]} g5 {[%emt 0:00:21]} 49. Rxc5 {[%emt 0:00:48]} g4+ {[%emt 0:00:01][%mdl 64] [#] Decoy} 50. Kxg4 {[%emt 0:00:04] aiming for Kh3.} Rxg2+ {[%emt 0:00:01]} 51. Kf3 {[%emt 0:00:57]} h3 {[%emt 0:00:01]} 52. Rh5 {[%emt 0:00:14]} Rc2 {[%emt 0:00:08]} 53. Rh6+ {[%emt 0:00:45]} Ke5 {[%emt 0:00:17] Black defended with fortune.  Weighted Error Value: White=0.10 (very precise) /Black=0.08 (flawless)} 1/2-1/2